bitfinex/quotes_ETHUSD_20250110
["timestamp","ask_amount","ask_price","bid_price","bid_amount"]
[1736518647620,0.59882107,3272.7,3270.8,0.0075]
[1736518647621,3.05596,3272.3,3271.2,3.05697]
[1736518647932,0.59882107,3272.7,3270.6,3.97138605]
[1736518647933,0.364,3272.2,3271.3,0.03056581]
[1736518648068,0.55,3271.9,3270.8,0.03056908]
[1736518648269,0.55,3271.9,3270.8,3.03056908]
[1736518648469,0.55,3271.9,3270.8,3.73650859]
[1736518649222,3.05624,3272.0,3270.3,3.05782]
[1736518649223,3.05663,3271.6,3270.3,3.05782]
[1736518649426,0.03503603,3271.5,3270.2,0.7629]
[1736518649721,3.05687,3271.4,3270.4,3.05765]
[1736518649926,0.55,3271.2,3270.1,3.05798]
[1736518650084,0.03503603,3271.1,3269.8,0.7629]
[1736518650286,3.66028251,3272.1,3270.1,0.15971214]
[1736518650487,0.364,3272.1,3270.6,0.0075]
[1736518650731,3.05567,3272.7,3271.1,3.0]
[1736518650938,3.05567,3272.7,3271.0,3.05716]
[1736518650939,4.283,3272.9,3271.5,0.0075]
[1736518651093,0.364,3272.7,3272.0,3.05623]
[1736518651296,0.03503603,3272.6,3271.6,0.306429]
[1736518651612,0.03503603,3272.6,3270.8,0.7629]
[1736518651613,3.05585,3272.5,3270.8,0.7629]
[1736518651910,3.09091603,3272.4,3271.5,3.05669]
[1736518652115,3.09091603,3272.4,3271.3,3.05685]
[1736518652413,3.09091603,3272.4,3270.6,4.00471261]
[1736518652414,3.05659,3271.7,3270.6,3.05753]
[1736518652552,0.55,3271.8,3270.8,3.05732]
[1736518652758,0.55,3271.7,3270.7,0.33632414]
[1736518653028,0.55,3271.7,3270.7,0.03057114]
[1736518653160,0.55,3272.3,3270.8,3.05735]
[1736518653473,0.55,3271.5,3270.5,3.05762]
[1736518653655,0.364,3271.4,3270.2,0.03057337]
[1736518653855,0.364,3271.4,3270.1,3.05801]
[1736518653856,0.364,3271.4,3270.3,3.05782]
[1736518654098,0.364,3271.4,3270.4,0.34385107]
[1736518654600,0.364,3271.6,3271.0,3.05716]
[1736518654757,0.364,3271.6,3271.0,3.05708]
[1736518655162,0.364,3271.6,3271.5,3.0567]
[1736518655589,0.364,3272.3,3271.8,3.05641]
[1736518655894,0.364,3272.3,3271.8,0.305641]
[1736518656200,4.647,3272.9,3272.3,3.05594]
[1736518656404,4.283,3272.9,3272.4,0.03055746]
[1736518656703,4.283,3272.9,3272.6,3.05564]
[1736518656901,0.03503603,3273.4,3272.7,3.0555]
[1736518657103,3.05425,3274.2,3272.6,3.05567]
[1736518657104,0.363,3273.5,3272.6,3.05567]
[1736518657606,3.05514,3273.2,3272.1,3.05605]
[1736518657785,3.09024603,3273.1,3272.1,3.05605]
[1736518658096,0.55,3272.9,3271.7,0.817]
[1736518658414,0.03503603,3272.8,3272.0,3.05621]
[1736518659192,0.55,3272.9,3272.0,3.05621]
[1736518659365,0.55,3272.9,3271.8,0.03055972]
[1736518659697,0.55,3272.9,3272.1,3.05611]
[1736518660084,0.55,3272.9,3271.4,3.05671]
[1736518660085,3.05558,3272.7,3271.4,3.05671]
[1736518660316,0.55,3272.9,3271.5,0.381071]
[1736518660317,0.55,3272.5,3271.5,0.381071]
[1736518660521,0.03503603,3272.4,3271.2,3.05698]
[1736518660821,0.03503603,3272.4,3271.6,3.0566]
[1736518661375,0.03503603,3272.4,3271.6,3.05653]
[1736518661786,0.03503603,3272.4,3271.1,0.0075]
[1736518662221,0.03503603,3272.4,3271.5,3.05667]
[1736518662423,3.05568,3272.6,3271.2,3.05698]
[1736518662568,0.03503603,3272.5,3271.3,0.60875434]
[1736518662787,0.55,3272.1,3271.0,0.754]
[1736518662987,0.55,3271.9,3270.4,0.305782]
[1736518663349,0.55,3271.5,3270.0,0.8304]
[1736518663649,3.0,3272.7,3270.4,3.0075]
[1736518663928,3.0558,3272.5,3270.8,0.0075]
[1736518664097,3.0558,3272.5,3270.9,3.0]
[1736518664286,3.0558,3272.5,3271.5,3.05665]
[1736518664486,3.60587,3272.4,3271.5,3.05665]
[1736518664689,0.55,3272.2,3271.3,3.0568]
[1736518664956,0.03503603,3272.1,3271.5,3.05669]
[1736518665237,4.00471261,3274.2,3271.6,4.03527719]
[1736518665387,3.055,3273.4,3272.3,3.05595]
[1736518665587,0.363,3273.7,3272.3,3.05589]
[1736518665822,3.05503,3273.3,3272.3,3.05589]
[1736518666386,1.224332,3274.2,3272.4,0.03055831]
[1736518666638,3.05452,3273.9,3272.4,0.7647]
[1736518666913,0.97956076,3274.1,3272.7,3.05549]
[1736518667100,3.05461,3273.8,3272.5,0.03055363]
[1736518667300,3.05461,3273.8,3272.7,3.05555]
[1736518667620,0.03503603,3273.7,3272.2,6.05599]
[1736518667790,0.03503603,3273.7,3272.2,1.00607026]
[1736518667990,0.55,3273.1,3272.2,3.05603]
[1736518668187,0.55,3272.9,3271.7,0.70352772]
[1736518668387,0.39803603,3272.8,3271.5,3.0566]
[1736518668640,0.55,3272.7,3271.8,3.05636]
[1736518668791,0.03503603,3272.6,3271.8,3.05636]
[1736518668992,0.55,3272.5,3271.6,3.05659]
[1736518669244,0.55,3272.3,3271.2,3.05694]
[1736518669407,0.55,3272.1,3271.2,3.05694]
[1736518669732,0.03503603,3272.0,3271.0,0.60954154]
[1736518669917,0.55,3271.9,3271.0,0.60954154]
[1736518670123,0.03503603,3271.8,3270.3,0.8121]
[1736518670326,3.05637,3271.9,3270.4,0.03056978]
[1736518670524,3.64147603,3271.8,3270.8,3.05727]
[1736518670834,3.60644,3271.8,3270.8,3.05727]
[1736518671049,0.55,3271.5,3270.5,3.0]
[1736518671245,0.39803603,3271.4,3270.6,3.05751]
[1736518671449,0.39803603,3271.4,3270.2,3.37760624]
[1736518671450,3.45491603,3271.4,3270.4,3.05772]
[1736518671603,0.363,3271.4,3270.3,0.03057384]
[1736518671939,0.363,3271.4,3270.7,3.05742]
[1736518672238,0.363,3271.4,3270.5,3.05759]
[1736518672538,0.363,3271.4,3270.8,3.05733]
[1736518672739,0.03503603,3271.3,3270.4,3.05769]
[1736518673300,0.363,3271.4,3270.5,3.05761]
[1736518673539,0.363,3271.4,3270.1,0.03057382]
[1736518673737,3.05591,3272.4,3270.2,3.0075]
[1736518673910,3.0553,3273.0,3270.7,3.05742]
[1736518673911,0.363,3271.7,3270.7,3.05742]
[1736518674248,3.05576,3272.5,3271.4,3.05672]
[1736518674406,0.363,3272.4,3271.4,3.05674]
[1736518674601,0.363,3272.4,3271.7,3.05647]
[1736518674839,0.03503603,3272.3,3271.5,3.05666]
[1736518675143,0.03503603,3272.3,3271.6,3.05659]
[1736518675341,0.363,3272.4,3271.5,0.33622927]
[1736518676431,0.363,3272.4,3271.7,3.05643]
[1736518676642,0.363,3272.4,3271.5,0.33622927]
[1736518676643,0.03503603,3272.3,3271.5,3.362336]
[1736518677143,0.03503603,3272.3,3271.5,0.305666]
[1736518677345,0.363,3272.4,3271.5,3.05665]
[1736518677559,0.55,3272.2,3271.3,3.0]
[1736518677841,0.363,3272.4,3271.6,3.05651]
[1736518678565,0.363,3272.4,3271.6,3.05658]
[1736518678720,0.363,3272.4,3271.3,3.08739419]
[1736518678721,0.55,3272.2,3271.0,0.8143]
[1736518679050,0.03503603,3272.1,3270.6,4.00471261]
[1736518679267,0.03503603,3272.1,3270.9,3.05717]
[1736518679268,3.05635,3271.9,3270.9,3.05717]
[1736518679461,0.363,3272.4,3270.9,3.05717]
[1736518679462,3.09147603,3271.8,3270.9,3.05717]
[1736518679768,3.09147603,3271.8,3270.7,3.45789126]
[1736518679769,0.55,3271.7,3270.7,3.45789126]
[1736518679902,3.09165603,3271.6,3270.7,3.05742]
[1736518680101,3.60671,3271.5,3270.4,3.44959777]
[1736518680308,0.55,3271.5,3270.5,3.0]
[1736518680541,3.05638,3271.9,3270.6,0.03057363]
[1736518680743,3.05638,3271.9,3270.7,0.30305736]
[1736518680951,0.55,3271.8,3270.9,3.05719]
[1736518681164,3.64146603,3271.8,3270.9,3.05719]
[1736518681342,0.55,3271.6,3270.3,3.0578]
[1736518681545,0.55,3271.2,3270.3,3.0578]
[1736518681746,0.39803603,3271.1,3270.3,3.0578]
[1736518682127,3.05736,3270.8,3269.8,3.05828]
[1736518682453,0.03503603,3270.7,3269.8,3.05828]
[1736518682667,3.60718,3271.0,3270.0,3.05809]
[1736518682866,3.60718,3271.0,3269.9,0.03057822]
[1736518683064,0.55,3271.0,3270.1,3.05799]
[1736518683468,3.09231603,3270.9,3269.9,3.05815]
[1736518683763,3.09231603,3270.9,3269.8,3.05826]
[1736518683764,3.05746,3270.7,3269.8,3.05826]
[1736518684067,0.03503603,3270.6,3269.9,3.05819]
[1736518684254,0.03503603,3270.6,3269.5,3.06602]
[1736518684450,0.03503603,3270.6,3269.6,0.45090596]
[1736518684751,0.55,3270.9,3270.0,3.05806]
[1736518685065,0.363,3271.6,3270.2,0.8269]
[1736518685271,0.363,3271.6,3270.8,3.05734]
[1736518685478,4.648,3272.2,3271.0,0.8317]
[1736518685639,4.648,3272.2,3271.3,3.0568]
[1736518685839,0.03503603,3272.1,3270.6,0.8317]
[1736518686039,0.55,3272.0,3270.7,0.48183209]
[1736518686269,0.03503603,3271.9,3270.7,0.48183209]
[1736518686449,3.05644,3271.8,3270.8,3.05735]
[1736518686663,0.03503603,3271.7,3270.8,3.05735]
[1736518686848,0.55,3271.6,3270.2,3.85819]
[1736518687173,0.55,3271.3,3269.8,0.8003]
[1736518687376,3.05737,3270.8,3269.9,3.05817]
[1736518687553,0.39703603,3270.7,3269.9,3.05817]
[1736518687883,0.55,3270.6,3269.6,0.45090596]
[1736518688083,0.55,3270.6,3269.9,3.05819]
[1736518688382,0.55,3270.6,3269.8,3.05828]
[1736518688783,3.60779,3270.4,3269.4,3.05857]
[1736518688942,0.55,3270.2,3269.4,3.05857]
[1736518689294,0.03503603,3270.1,3269.5,3.05856]
[1736518689594,0.362,3270.7,3269.9,3.05819]
[1736518689902,3.05665,3271.6,3269.5,0.36603124]
[1736518689903,0.362,3271.2,3270.5,3.05761]
[1736518690193,0.362,3271.4,3270.3,3.0]
[1736518690370,0.362,3271.4,3270.2,3.05785]
[1736518690371,0.03503603,3271.3,3270.2,3.05785]
[1736518690573,0.55,3271.2,3270.4,3.05765]
[1736518690887,0.55,3271.3,3270.4,3.36647251]
[1736518691187,0.55,3271.3,3270.6,3.05753]
[1736518691343,0.55,3271.5,3270.6,3.05753]
[1736518691548,0.362,3271.9,3270.6,0.03057455]
[1736518691746,3.05655,3271.7,3270.7,3.05742]
[1736518692056,0.362,3271.9,3270.2,3.05783]
[1736518692057,3.6067,3271.5,3270.5,3.05762]
[1736518692256,0.55,3271.3,3270.5,3.05762]
[1736518692461,0.55,3271.3,3270.0,3.0]
[1736518692462,0.55,3271.5,3270.6,3.05753]
[1736518692783,0.55,3271.5,3271.1,3.05706]
[1736518692784,0.362,3271.5,3271.1,3.05706]
[1736518693296,14.60971707,3274.9,3270.8,0.0305695]
[1736518693297,5.52274572,3273.1,3270.8,0.0305695]
[1736518693497,3.05571,3272.6,3271.5,3.05661]
[1736518693701,0.362,3272.9,3270.8,0.03056584]
[1736518693702,3.60578,3272.5,3271.6,3.05659]
[1736518693994,0.55,3272.2,3271.2,3.05693]
[1736518694152,0.55,3271.7,3270.6,0.47571209]
[1736518694356,3.05608,3272.2,3270.6,0.47571209]
[1736518694357,3.6067,3271.5,3270.6,3.05751]
[1736518694600,3.6067,3271.5,3270.4,3.0]
[1736518694601,0.55,3271.5,3270.4,3.0]
[1736518694900,0.03503603,3271.4,3270.2,0.7728]
[1736518695099,0.362,3272.3,3271.4,3.05674]
[1736518695301,0.362,3272.3,3271.2,3.0]
[1736518695459,0.362,3272.3,3271.2,0.684679]
[1736518695824,0.362,3272.3,3271.4,3.05679]
[1736518695961,0.362,3272.3,3271.4,3.05676]
[1736518696160,0.55,3272.2,3271.4,3.05676]
[1736518696529,0.55,3271.7,3270.8,3.05726]
[1736518696822,3.05611,3272.2,3270.4,0.03057217]
[1736518697016,3.05611,3272.2,3270.1,3.98662088]
[1736518697017,3.05678,3271.5,3270.5,3.05759]
[1736518697161,0.58503603,3271.4,3270.6,3.05746]
[1736518697362,0.55,3271.4,3270.6,3.05746]
[1736518697691,0.55,3271.2,3270.6,3.05746]
[1736518698025,0.55,3271.6,3270.7,3.05743]
[1736518698225,6.05618,3272.1,3270.7,0.305743]
[1736518698226,3.05619,3272.1,3270.7,0.305743]
[1736518698496,0.96337761,3272.3,3271.4,3.05679]
[1736518698497,0.362,3272.3,3271.4,3.05679]
[1736518698661,0.362,3272.3,3270.8,0.03057403]
[1736518698662,0.362,3272.3,3271.6,3.05658]
[1736518699363,0.55,3272.2,3271.6,3.05658]
[1736518699598,0.362,3272.3,3271.6,3.05658]
[1736518699905,3.05569,3272.6,3271.3,0.0305656]
[1736518699906,5.37,3273.5,3271.7,3.98662088]
[1736518700054,0.362,3273.4,3272.6,3.05564]
[1736518700258,0.362,3273.4,3272.7,3.05557]
[1736518700871,0.362,3273.4,3273.0,3.05528]
[1736518701073,0.361,3273.6,3273.0,3.05528]
[1736518701641,0.361,3274.4,3273.1,3.05512]
[1736518702098,0.03503603,3274.3,3273.1,3.05512]
[1736518702299,0.361,3274.4,3273.1,3.05512]
[1736518702821,3.05418,3274.2,3272.3,0.7754]
[1736518703120,0.6199144,3274.6,3272.3,0.7754]
[1736518703121,0.55,3273.9,3272.7,3.05555]
[1736518703334,0.55,3273.9,3272.8,3.0554]
[1736518703542,0.361,3274.1,3272.4,0.0075]
[1736518703817,0.361,3274.0,3273.1,3.05518]
[1736518704021,3.05401,3274.4,3273.3,3.055]
[1736518704226,0.361,3274.0,3273.3,3.055]
[1736518704367,0.361,3274.0,3273.4,0.03055]
[1736518704573,0.361,3274.0,3273.4,3.05488]
[1736518704809,0.361,3274.0,3273.2,0.03054598]
[1736518704810,0.361,3274.2,3273.5,3.05483]
[1736518705123,0.58503603,3274.1,3273.3,3.05499]
[1736518705330,0.58503603,3274.1,3273.1,1.056618]
[1736518705487,0.58503603,3274.1,3272.7,3.98662088]
[1736518705488,0.55,3273.9,3272.9,3.05539]
[1736518705671,0.55,3273.7,3272.9,0.388359]
[1736518705869,0.55,3273.7,3272.7,0.8282]
[1736518706089,3.41521,3274.2,3272.7,0.8282]
[1736518706090,0.55,3274.1,3273.1,3.05518]
[1736518706648,0.55,3273.9,3273.1,3.05518]
[1736518706919,3.60427,3274.1,3272.8,3.0]
[1736518706920,0.55,3273.7,3272.8,3.0]
[1736518707117,0.55,3274.0,3272.9,0.0305497]
[1736518707319,0.55,3274.0,3272.9,0.72197667]
[1736518707528,0.55,3273.8,3272.9,0.69142697]
[1736518707823,0.361,3274.2,3272.7,0.8282]
[1736518707824,0.55,3274.1,3273.0,3.0858297]
[1736518708031,0.55,3274.1,3273.0,0.0305497]
[1736518708208,3.05384,3274.6,3273.4,3.05484]
[1736518708518,3.44993603,3274.5,3273.4,3.05484]
[1736518708722,3.44993603,3274.5,3272.7,4.81482088]
[1736518708723,3.05409,3274.3,3273.1,3.05511]
[1736518708867,0.03503603,3274.2,3273.1,0.305511]
[1736518709073,0.55,3274.1,3273.3,3.05501]
[1736518709275,0.03503603,3274.0,3273.3,3.05501]
[1736518709584,0.55,3273.6,3272.7,3.88373]
[1736518709810,0.55,3273.4,3272.4,0.61758781]
[1736518709987,0.55,3273.2,3272.6,3.05566]
[1736518710567,0.55,3273.2,3272.4,0.03055509]
[1736518710767,0.361,3273.3,3271.7,3.99412088]
[1736518710768,0.55,3273.0,3272.1,3.05611]
[1736518711074,0.55,3272.8,3271.6,0.62666156]
[1736518711273,0.361,3273.3,3272.3,3.05593]
[1736518711523,0.03503603,3273.2,3272.3,3.05593]
[1736518711818,3.60522,3273.1,3272.1,3.05611]
[1736518712122,0.55,3272.9,3271.7,3.05643]
[1736518712283,0.55,3272.9,3272.0,3.05618]
[1736518712469,0.55,3272.9,3271.9,3.05631]
[1736518712665,0.55,3272.9,3271.8,0.03056089]
[1736518712880,0.361,3273.3,3272.7,3.05557]
[1736518713209,0.58503603,3273.2,3272.5,3.05573]
[1736518713414,0.55,3273.1,3272.1,0.7776]
[1736518713719,0.361,3273.9,3272.9,0.8082]
[1736518713900,6.06540118,3275.3,3273.0,0.41136753]
[1736518714086,3.0538,3274.7,3273.7,3.05461]
[1736518714609,0.60114722,3274.8,3273.6,3.05471]
[1736518714823,3.05397,3274.5,3273.4,3.08544489]
[1736518715111,0.361,3274.4,3273.1,0.0305467]
[1736518715324,3.05374,3274.7,3273.2,3.98662088]
[1736518715606,3.41487,3274.6,3273.3,3.48728163]
[1736518715809,3.05393,3274.5,3273.5,3.0548]
[1736518716014,0.55,3274.4,3273.5,3.05475]
[1736518716167,0.91,3274.4,3273.3,0.03054487]
[1736518716373,0.55,3274.0,3273.1,3.0552]
[1736518716709,0.55,3274.0,3273.0,0.03054872]
[1736518716898,0.36,3274.3,3273.6,3.0547]
[1736518717413,0.55,3274.2,3273.0,0.03054872]
[1736518717615,0.55,3274.0,3273.3,3.05495]
[1736518717812,0.55,3274.0,3273.4,3.0549]
[1736518718114,0.55,3274.0,3272.9,0.8082]
[1736518718115,0.03503603,3273.9,3272.9,0.8082]
[1736518718285,0.55,3274.0,3273.2,3.05511]
[1736518718607,3.60457,3273.8,3272.8,3.05545]
[1736518718815,0.55,3273.6,3272.6,3.67615264]
[1736518718981,0.55,3273.4,3272.2,3.87566]
[1736518719181,0.55,3273.2,3272.4,3.05586]
[1736518719612,0.60463863,3273.8,3272.4,3.05586]
[1736518719613,0.60463863,3273.8,3272.5,3.08631637]
[1736518719772,0.03503603,3273.7,3272.7,3.0555]
[1736518719977,0.55,3273.6,3272.7,3.0555]
[1736518720202,0.55,3273.7,3272.7,3.05549]
[1736518720384,0.36,3273.9,3272.8,0.0075]
[1736518720582,0.36,3274.4,3273.3,0.0075]
[1736518720790,0.36,3274.4,3273.8,3.05452]
[1736518721484,4.285,3275.8,3273.5,0.03054159]
[1736518721729,0.6221972,3275.9,3274.5,0.0075]
[1736518721899,0.36,3276.5,3275.2,3.05317]
[1736518722088,0.55,3276.1,3275.2,3.05317]
[1736518722287,0.36,3276.1,3275.2,0.305317]
[1736518722501,0.36,3276.1,3275.0,0.7726]
[1736518722813,0.60690228,3277.3,3275.8,3.7726]
[1736518723034,0.60690228,3277.3,3275.1,0.03052824]
[1736518723035,0.60690228,3277.3,3276.3,3.98662088]
[1736518723320,0.36,3277.6,3276.5,3.05194]
[1736518723490,0.03503603,3277.5,3276.5,3.05194]
[1736518723692,3.41104,3277.6,3276.5,3.05194]
[1736518724072,0.36,3277.6,3276.6,0.305194]
[1736518724294,0.03503603,3277.5,3276.6,0.305194]
[1736518724475,0.03503603,3277.5,3276.4,3.05211]
[1736518724669,0.36,3277.6,3276.5,0.03051647]
[1736518724998,3.41083,3277.8,3276.5,3.05203]
[1736518725202,0.03503603,3277.7,3277.0,0.8244]
[1736518725401,3.2178241,3278.6,3277.5,3.05108]
[1736518725604,0.03503603,3278.5,3277.5,3.05108]
[1736518725804,0.03503603,3278.5,3277.6,3.05099]
[1736518725986,0.03503603,3278.5,3277.5,0.305108]
[1736518726320,0.25,3280.8,3278.4,3.98662088]
[1736518726489,2.16609312,3282.4,3280.7,3.0]
[1736518726878,6.27307329,3283.2,3281.7,3.98662088]
[1736518726879,3.04596,3283.1,3281.7,3.98662088]
[1736518727079,0.1677,3283.2,3281.7,3.98662088]
[1736518727377,0.625,3283.8,3282.0,0.24999]
[1736518727678,0.625,3283.8,3283.0,3.8143]
[1736518727880,0.625,3283.8,3281.8,3.98662088]
[1736518728092,0.625,3283.8,3282.0,0.0225]
[1736518728237,0.625,3283.8,3282.3,6.99412088]
[1736518728437,0.625,3283.8,3282.4,0.03045415]
[1736518728876,0.1677,3283.6,3282.3,3.04658]
[1736518729078,0.03503603,3283.5,3281.9,3.86122]
[1736518729380,0.39503603,3283.5,3282.1,3.04674]
[1736518729543,0.39503603,3283.5,3282.4,3.04652]
[1736518729883,3.44061603,3283.5,3282.0,3.0469]
[1736518730100,0.39503603,3283.5,3281.3,0.7719]
[1736518730305,0.39503603,3283.5,3280.8,3.04803]
[1736518730306,0.1677,3282.9,3280.8,3.04803]
[1736518730600,3.40621,3282.8,3281.0,3.0]
[1736518730811,0.55,3282.6,3280.8,3.0]
[1736518730946,0.36,3282.8,3281.3,3.04754]
[1736518731145,0.359,3282.7,3281.6,3.04723]
[1736518731341,0.359,3282.6,3281.7,0.03046807]
[1736518731594,0.359,3282.6,3281.3,3.0]
[1736518731595,0.359,3282.6,3281.8,0.0075]
[1736518731820,0.359,3282.6,3282.1,3.0468]
[1736518732007,4.4447,3283.6,3282.2,0.86276343]
[1736518732302,4.4447,3283.6,3282.2,3.87899]
[1736518732303,0.39403603,3283.5,3282.2,3.87899]
[1736518732500,0.39403603,3283.5,3282.4,3.04653]
[1736518732703,0.03503603,3283.5,3282.6,3.04632]
[1736518732899,0.03503603,3283.5,3282.2,0.8323]
[1736518732900,4.277,3283.6,3282.7,3.07670806]
[1736518733216,0.359,3283.5,3282.8,3.04615]
[1736518733367,0.359,3283.5,3282.2,4.81892088]
[1736518733368,0.359,3283.5,3282.9,0.03045714]
[1736518733546,0.359,3283.5,3282.2,3.87898]
[1736518733547,0.39403603,3283.5,3282.2,3.87898]
[1736518733749,0.39403603,3283.5,3281.6,0.8011]
[1736518733976,0.39403603,3283.5,3281.7,3.04718]
[1736518734248,0.39403603,3283.5,3281.6,0.8011]
[1736518734249,0.55,3283.0,3281.6,0.8011]
[1736518734486,0.55,3282.8,3281.0,0.7527]
[1736518734687,0.1677,3283.3,3281.0,0.7527]
[1736518734688,0.55,3282.6,3281.0,3.80051]
[1736518734887,0.55,3281.9,3280.6,2.07892289]
[1736518735185,0.55,3281.7,3280.6,5.12708289]
[1736518735559,0.55,3281.7,3280.7,0.0075]
[1736518735766,0.55,3281.7,3280.6,5.12708289]
[1736518735767,0.55,3281.5,3280.6,5.12708289]
[1736518735947,0.03503603,3281.4,3280.6,2.07892289]
[1736518736288,0.03503603,3281.4,3280.4,0.7527]
[1736518736289,3.04609,3282.9,3281.4,3.04746]
[1736518736472,0.39403603,3283.5,3281.5,0.0075]
[1736518736682,0.359,3283.4,3281.5,4.01708687]
[1736518736844,0.359,3283.4,3282.2,3.04672]
[1736518737046,0.03503603,3283.3,3281.6,3.0]
[1736518737263,0.03503603,3283.3,3280.9,0.8255]
[1736518737488,0.55,3283.2,3281.2,3.04759]
[1736518737803,0.03503603,3283.1,3281.2,3.04762]
[1736518737979,0.55,3282.4,3280.9,3.87337]
[1736518738144,0.55,3282.2,3281.1,3.0]
[1736518738494,0.39403603,3282.1,3280.9,3.04789]
[1736518738789,0.55,3281.9,3280.5,1.76857999]
[1736518739091,0.55,3281.7,3280.5,1.76857999]
[1736518739385,0.55,3281.5,3280.4,3.04839]
[1736518739589,0.55,3281.3,3280.2,0.7767]
[1736518739789,3.59708,3281.9,3280.7,3.04812]
[1736518740007,0.359,3282.0,3280.9,0.0075]
[1736518740190,0.359,3282.0,3281.1,3.05523]
[1736518740367,0.359,3282.0,3281.2,0.03046987]
[1736518740550,0.359,3282.0,3281.3,3.0475]
[1736518740887,0.359,3282.0,3280.7,3.04809]
[1736518741093,0.55,3281.9,3280.4,1.73090212]
[1736518741392,0.55,3281.7,3280.4,4.77929212]
[1736518741590,0.55,3281.7,3280.5,3.07878796]
[1736518741745,0.359,3282.0,3280.6,0.015]
[1736518741963,0.1677,3283.0,3281.3,3.0075]
[1736518742212,0.5267,3283.0,3281.4,0.03046461]
[1736518742523,0.1677,3283.0,3281.8,6.04705]
[1736518742718,3.08115603,3282.9,3281.6,3.04728]
[1736518742927,3.08115603,3282.9,3281.7,3.0075]
[1736518743067,0.03503603,3282.9,3281.7,0.0075]
[1736518743264,0.359,3283.1,3281.9,0.0225]
[1736518743477,0.1677,3283.5,3281.9,0.40395857]
[1736518743739,0.359,3283.0,3282.2,3.0]
[1736518744228,3.04601,3283.0,3281.7,3.04711]
[1736518744369,3.04618,3282.8,3281.8,3.0]
[1736518744569,0.359,3282.9,3281.9,0.03796532]
[1736518744804,0.03503603,3282.8,3281.9,0.0075]
[1736518744979,0.39403603,3282.8,3281.6,3.0]
[1736518745180,3.04629,3282.7,3281.5,3.86721]
[1736518745398,0.7177,3282.5,3281.0,0.7674]
[1736518745626,3.04665,3282.3,3281.1,3.04775]
[1736518745798,0.7177,3282.5,3281.1,3.04775]
[1736518745799,3.08178603,3282.2,3281.1,3.04775]
[1736518746014,3.08178603,3282.2,3281.0,0.7674]
[1736518746015,0.55,3282.1,3280.6,3.04814]
[1736518746332,0.1677,3281.8,3280.4,1.73090212]
[1736518746540,3.04749,3281.4,3280.4,1.73090212]
[1736518746674,0.358,3281.3,3280.5,0.03047843]
[1736518747023,0.358,3282.1,3281.2,0.0075]
[1736518747185,0.19882468,3282.1,3281.3,3.04756]
[1736518747387,0.19882468,3282.1,3281.4,0.03046997]
[1736518747709,0.19882468,3282.1,3281.2,3.07806916]
[1736518747914,0.19882468,3282.1,3280.6,0.7561]
[1736518748075,0.03503603,3282.0,3280.8,3.04802]
[1736518748282,3.04703,3281.9,3280.9,0.0075]
[1736518748476,3.04728,3281.7,3280.4,1.73090212]
[1736518748678,3.04728,3281.7,3280.5,3.03047592]
[1736518748928,3.047,3282.0,3280.7,3.0]
[1736518749130,0.19882468,3282.1,3280.8,0.03047592]
[1736518749468,0.19882468,3282.1,3280.4,1.73090212]
[1736518749469,0.1677,3281.3,3280.4,1.73090212]
[1736518749795,3.04779,3281.1,3280.4,1.73090212]
[1736518750112,3.04794,3281.0,3280.4,1.73090212]
[1736518750312,0.39303603,3280.9,3280.4,1.73090212]
[1736518750517,3.44100603,3280.9,3280.4,1.73090212]
[1736518750843,3.04825,3280.6,3280.4,1.73090212]
[1736518750998,0.55,3280.8,3280.4,1.73090212]
[1736518750999,3.08334603,3280.5,3280.4,1.73090212]
[1736518751343,0.358,3280.9,3279.2,0.03048538]
[1736518751555,0.358,3280.9,3279.5,3.04922]
[1736518751556,3.08317603,3280.7,3279.5,3.04922]
[1736518751698,0.7177,3280.6,3279.3,0.48361063]
[1736518751927,3.59834,3280.5,3279.4,3.07973936]
[1736518752132,0.55,3280.2,3279.3,0.48361063]
[1736518752350,3.0485,3280.4,3279.4,0.03048927]
[1736518752557,3.04887,3280.0,3278.8,3.04989]
[1736518752765,0.03503603,3279.9,3278.9,3.354729]
[1736518753184,0.55,3280.5,3279.0,0.03049189]
[1736518753331,0.03503603,3280.4,3278.9,3.04979]
[1736518753532,0.1677,3280.6,3279.0,0.03049326]
[1736518753533,3.0487,3280.1,3279.0,0.03049326]
[1736518753725,0.55,3280.0,3279.0,3.08018326]
[1736518753930,3.04879,3280.0,3279.0,0.03049326]
[1736518754131,0.358,3280.2,3278.0,3.6509295]
[1736518754132,0.55,3279.3,3278.0,0.7889]
[1736518754331,0.03503603,3279.2,3278.0,3.83952]
[1736518754576,0.03503603,3279.2,3278.1,0.383952]
[1736518754577,3.04962,3279.1,3278.1,0.383952]
[1736518754723,0.39303603,3279.0,3278.1,0.383952]
[1736518755131,0.1677,3279.8,3278.8,3.04983]
[1736518755331,3.04916,3279.6,3278.5,3.0]
[1736518755544,0.39303603,3279.7,3278.1,0.383952]
[1736518755545,3.04943,3279.3,3278.1,0.383952]
[1736518755750,0.55,3279.4,3278.0,3.83951]
[1736518755751,0.55,3279.1,3278.0,3.83951]
[1736518756032,3.04943,3279.3,3278.2,3.05044]
[1736518756255,0.55,3279.2,3278.2,3.05044]
[1736518756455,3.40711,3279.7,3278.1,0.03050081]
[1736518756456,3.04924,3279.5,3278.3,0.0075]
[1736518756676,3.04924,3279.5,3278.3,0.0380008]